Workbook

Sheet RESUMEN
B6: DATOS DE CABECERA PACC
B7: MONTO ESTIMADO TOTAL | C7: =PACC!B10 -> 77998267.72
B8: CANTIDAD DE PROCESOS REGISTRADOS | C8: =PACC!B9 -> 156
B9: CAPÍTULO | C9: =IF(PACC!E6="","",PACC!E6) -> 0205
B10: SUB CAPÍTULO | C10: =IF(PACC!E7="","",PACC!E7) -> 01
B11: UNIDAD EJECUTORA | C11: =IF(PACC!E8="","",PACC!E8) -> 0009
B12: UNIDAD DE COMPRA | C12: =IF(PACC!E9="","",PACC!E9) -> Dirección Gral de Contabilidad Gubernamental
B13: AÑO FISCAL | C13: =IF(PACC!E11="","",PACC!E11) -> 2022
B14: FECHA APROBACIÓN | C14: =IF(PACC!E12="","",PACC!E12) -> 
B15: MONTOS ESTIMADOS SEGÚN OBJETO DE CONTRATACIÓN
B16: BIENES | C16: =SUMIF(ObjetoContratacionOculto,"="&Bienes,TotalEstColumnValue) -> 45922029.72
B17: OBRAS | C17: =SUMIF(ObjetoContratacionOculto,"="&Obras,TotalEstColumnValue) -> 0
B18: SERVICIOS | C18: =SUMIF(ObjetoContratacionOculto,"="&Servicios,TotalEstColumnValue) -> 32076238
B19: SERVICIOS: CONSULTORÍA | C19: =SUMIF(ObjetoContratacionOculto,"="&ServiciosConsultoria,TotalEstColumnValue) -> 0
B20: SERVICIOS: CONSULTORÍA BASADA EN LA CALIDAD DE LOS SERVICIOS | C20: =SUMIF(ObjetoContratacionOculto,"="&ConsultoriaServicios,TotalEstColumnValue) -> 0
B21: MONTOS ESTIMADOS SEGÚN CLASIFICACIÓN MIPYME
B22: MIPYME | C22: =SUMIF(MIPYMEOculto,"="&MIPYMESí,TotalEstColumnValue) -> 34423020.13
B23: MIPYME MUJER | C23: =SUMIF(MIPYMEOculto,"="&MIPYMEMujer,TotalEstColumnValue) -> 2747571.59
B24: NO MIPYME | C24: =SUMIF(MIPYMEOculto,"="&MIPYMENo,TotalEstColumnValue) -> 40827676
B25: MONTOS ESTIMADOS SEGÚN TIPO DE PROCEDIMIENTO
B26: COMPRAS POR DEBAJO DEL UMBRAL | C26: =SUMIF(ProcedimientoOculto,"="&ModCU,TotalEstColumnValue) -> 4484699
B27: COMPRA MENOR | C27: =SUMIF(ProcedimientoOculto,"="&ModCM,TotalEstColumnValue) -> 24321870.72
B28: COMPARACIÓN DE PRECIOS | C28: =SUMIF(ProcedimientoOculto,"="&ModCP,TotalEstColumnValue) -> 38191698
B29: LICITACIÓN PÚBLICA | C29: =SUMIF(ProcedimientoOculto,"="&ModLP,TotalEstColumnValue) -> 11000000
B30: LICITACIÓN PÚBLICA INTERNACIONAL | C30: =SUMIF(ProcedimientoOculto,"="&ModLI,TotalEstColumnValue) -> 0
B31: LICITACIÓN RESTRINGIDA | C31: =SUMIF(ProcedimientoOculto,"="&ModLR,TotalEstColumnValue) -> 0
B32: SORTEO DE OBRAS | C32: =SUMIF(ProcedimientoOculto,"="&ModSO,TotalEstColumnValue) -> 0
B33: EXCEPCIÓN - BIENES O SERVICIOS CON EXCLUSIVIDAD | C33: =SUMIF(ProcedimientoOculto,"="&ModEBienes,TotalEstColumnValue) -> 0
B34: EXCEPCIÓN - CONSTRUCCIÓN, INSTALACIÓN O ADQUISICIÓN DE OFICINAS PARA EL SERVICIO EXTERIOR | C34: =SUMIF(ProcedimientoOculto,"="&ModEConstruccion,TotalEstColumnValue) -> 0
B35: EXCEPCIÓN - CONTRATACIÓN DE PUBLICIDAD A TRAVÉS DE MEDIOS DE COMUNICACIÓN SOCIAL | C35: =SUMIF(ProcedimientoOculto,"="&ModEPublicidad,TotalEstColumnValue) -> 0
B36: EXCEPCIÓN - OBRAS CIENTÍFICAS, TÉCNICAS, ARTÍSTICAS, O RESTAURACIÓN DE MONUMENTOS HISTÓRICOS | C36: =SUMIF(ProcedimientoOculto,"="&ModEObras,TotalEstColumnValue) -> 0
B37: EXCEPCIÓN - PROVEEDOR ÚNICO | C37: =SUMIF(ProcedimientoOculto,"="&ModEProveedor,TotalEstColumnValue) -> 0
B38: EXCEPCIÓN - RESCISIÓN DE CONTRATOS CUYA TERMINACIÓN NO EXCEDA EL 40% DEL MONTO TOTAL DEL PROYECTO, OBRA O SERVICIO | C38: =SUMIF(ProcedimientoOculto,"="&ModE40,TotalEstColumnValue) -> 0
B39: EXCEPCIÓN - RESOLUCIÓN 15-08 SOBRE COMPRA Y CONTRATACIÓN DE PASAJE AÉREO, COMBUSTIBLE Y REPARACIÓN DE VEHÍCULOS DE MOTOR | C39: =SUMIF(ProcedimientoOculto,"="&ModE1508,TotalEstColumnValue) -> 0

Sheet PACC
B2: PLAN ANUAL DE COMPRAS Y CONTRATACIONES
B3: ="AÑO "&E11 -> AÑO 2022
A6: SNCC.F.069 | D6: Capítulo | E6: 0205
A7: Version: 1.0.0 | D7: Sub Capítulo | E7: 01
D8: Unidad Ejecutora | E8: 0009
A9: Cantidad Procesos Registrados | B9: =COUNTIFS(TotalEstColumnName,"="&TotalEstLabel,TotalEstColumnValue,">0") -> 156 | D9: Unidad de Compra | E9: Dirección Gral de Contabilidad Gubernamental
A10: Monto Estimado Total | B10: =SUMIF(TotalEstColumnName,"="&TotalEstLabel,TotalEstColumnValue) -> 77998267.72 | D10: Código de la Unidad de Compra | E10: 000002
D11: Año Fiscal | E11: 2022
D12: Fecha Aprobación
A15: NOMBRE O REFERENCIA DE CONTRATACIÓN | B15: FINALIDAD DE LA CONTRATACIÓN | C15: OBJETO DE CONTRATACIÓN | D15: PROCEDIMIENTO DE SELECCIÓN | E15: DESTINADO A MIPYMES | F15: CÓDIGO SNIP
A16: Adquisición de Material Gastable | B16: Material Gastable | C16: Bienes | D16: Compras Menores | E16: Sí
A17: FECHA DE NECESSIDAD | B17: FECHA INICIO PROCESO DE COMPRA | C17: 2022-02-16 | D17: LUGAR DE EJECUCIÓN / ENTREGA | E17: Región | F17: OZAMA O METROPOLITANA
B18: TRIMESTRE | C18: =IF(C17="","",IF(AND(MONTH(C17)>=1,MONTH(C17)<=3),1,IF(AND(MONTH(C17)>=4,MONTH(C17)<=6),2,IF(AND(MONTH(C17)>=7,MONTH(C17)<=9),3,4)))) -> 1 | E18: Provincia | F18: Distrito Nacional
B19: FECHA PREVISTA ADJUDICACIÓN | C19: 2022-02-24 | E19: Municipio | F19: Distrito Nacional
B20: TRIMESTRE | C20: =IF(C19="","",IF(AND(MONTH(C19)>=1,MONTH(C19)<=3),1,IF(AND(MONTH(C19)>=4,MONTH(C19)<=6),2,IF(AND(MONTH(C19)>=7,MONTH(C19)<=9),3,4)))) -> 1 | E20: Distrito Municipal | F20: Distrito Nacional
A22: CÓDIGO CATÁLOGO | B22: ARTÍCULO | C22: UNIDAD DE MEDIDA | D22: CANTIDAD TOTAL ESTIMADA | E22: PRECIO UNITARIO ESTIMADO | F22: MONTO TOTAL ESTIMADO
A23: 82101801 | B23: =IFERROR(INDEX(UNSPSCDes,MATCH(INDIRECT(ADDRESS(ROW(),COLUMN()-1,4)),UNSPSCCode,0)),"") -> Servicios de campañas publicitarias | C23: Unidad | D23: 10 | E23: 500 | F23: =INDIRECT(ADDRESS(ROW(),COLUMN()-2,4))*INDIRECT(ADDRESS(ROW(),COLUMN()-1,4)) -> 5000
A24: 24112504 | B24: Cajas moldeadas | C24: Unidad | D24: 3 | E24: 95 | F24: 285
A25: 14111514 | B25: Blocs o cuadernos de papel | C25: Unidad | D25: 144 | E25: 85 | F25: 12240
A26: 14111514 | B26: Blocs o cuadernos de papel | C26: Unidad | D26: 144 | E26: 26 | F26: 3744
A27: 44112001 | B27: Libretas de direcciones o repuestos | C27: Unidad | D27: 1200 | E27: 37 | F27: 44400
A28: 44112001 | B28: Libretas de direcciones o repuestos | C28: Unidad | D28: 144 | E28: 37 | F28: 5328
A29: 14111514 | B29: Blocs o cuadernos de papel | C29: Unidad | D29: 144 | E29: 42 | F29: 6048
A30: 14111514 | B30: Blocs o cuadernos de papel | C30: Unidad | D30: 8 | E30: 190 | F30: 1520
A31: 14111514 | B31: Blocs o cuadernos de papel | C31: Unidad | D31: 8 | E31: 250 | F31: 2000
A32: 60121104 | B32: Papel bond para para dibujo | C32: Resma | D32: 25 | E32: 281 | F32: 7025
A33: 60121104 | B33: Papel bond para para dibujo | C33: Caja | D33: 45 | E33: 2237.28 | F33: 100677.6
A34: 60121104 | B34: Papel bond para para dibujo | C34: Resma | D34: 18 | E34: 280 | F34: 5040
A35: 60121104 | B35: Papel bond para para dibujo | C35: Resma | D35: 8 | E35: 307 | F35: 2456
A36: 14111815 | B36: Tarjetas de identificación | C36: Paquete | D36: 3 | E36: 2750 | F36: 8250
A37: 14111530 | B37: Papel de notas autoadhesivas | C37: Paquete | D37: 12 | E37: 20 | F37: 240
A38: 14111530 | B38: Papel de notas autoadhesivas | C38: Paquete | D38: 12 | E38: 23 | F38: 276
A39: 14111530 | B39: Papel de notas autoadhesivas | C39: Caja | D39: 12 | E39: 1400 | F39: 16800
A40: 60121152 | B40: Tablillas de escritura | C40: Unidad | D40: 12 | E40: 55 | F40: 660
A41: 55121606 | B41: Etiquetas auto adhesivas | C41: Paquete | D41: 6 | E41: 15 | F41: 90
A42: 31191507 | B42: Cintas abrasivas | C42: Caja | D42: 14 | E42: 45 | F42: 630
A43: 31191507 | B43: Cintas abrasivas | C43: Unidad | D43: 144 | E43: 78 | F43: 11232
A44: 12181501 | B44: Ceras sintéticas | C44: Unidad | D44: 15 | E44: 43 | F44: 645
A45: 15121801 | B45: Repelente de humedad | C45: Unidad | D45: 15 | E45: 272 | F45: 4080
A46: 53131626 | B46: Desinfectante de manos | C46: Caja | D46: 7 | E46: 800 | F46: 5600
A47: 10191509 | B47: Insecticidas | C47: Unidad | D47: 24 | E47: 350 | F47: 8400
A48: 12191501 | B48: Disolventes aromáticos | C48: Caja | D48: 15 | E48: 1500 | F48: 22500
A49: 12171703 | B49: Tintas | C49: Unidad | D49: 2 | E49: 55 | F49: 110
A50: 47131812 | B50: Refrescador de aire | C50: Caja | D50: 3 | E50: 101 | F50: 303
A51: 44122101 | B51: Cauchos | C51: Caja | D51: 10 | E51: 80 | F51: 800
A52: 44122101 | B52: Cauchos | C52: Caja | D52: 25 | E52: 23 | F52: 575
A53: 44111503 | B53: Organizadores o bandejas para el escritorio | C53: Unidad | D53: 6 | E53: 177 | F53: 1062
A54: 44121701 | B54: Bolígrafos | C54: Docena | D54: 225 | E54: 57.5 | F54: 12937.5
A55: 44122003 | B55: =IFERROR(INDEX(UNSPSCDes,MATCH(INDIRECT(ADDRESS(ROW(),COLUMN()-1,4)),UNSPSCCode,0)),"") -> Carpetas | C55: Unidad | D55: 25 | E55: 74.48 | F55: =INDIRECT(ADDRESS(ROW(),COLUMN()-2,4))*INDIRECT(ADDRESS(ROW(),COLUMN()-1,4)) -> 1862
A56: 44122003 | B56: Carpetas | C56: Unidad | D56: 25 | E56: 200 | F56: 5000
A57: 44122003 | B57: Carpetas | C57: Unidad | D57: 25 | E57: 160 | F57: 4000
A58: 44122003 | B58: Carpetas | C58: Unidad | D58: 30 | E58: 219 | F58: 6570
A59: 44122003 | B59: Carpetas | C59: Unidad | D59: 6 | E59: 250 | F59: 1500
A60: 44122003 | B60: Carpetas | C60: Unidad | D60: 5 | E60: 3200 | F60: 16000
A61: 44122101 | B61: Cauchos | C61: Caja | D61: 2 | E61: 65 | F61: 130
A62: 44103111 | B62: Rollos de tinta | C62: Unidad | D62: 10 | E62: 2600 | F62: 26000
A63: 44122104 | B63: Clips para papel | C63: Caja | D63: 6 | E63: 160 | F63: 960
A64: 44122104 | B64: Clips para papel | C64: Caja | D64: 12 | E64: 65 | F64: 780
A65: 44122104 | B65: Clips para papel | C65: Caja | D65: 15 | E65: 61 | F65: 915
A66: 44122104 | B66: Clips para papel | C66: Caja | D66: 35 | E66: 60 | F66: 2100
A67: 44122104 | B67: Clips para papel | C67: Caja | D67: 15 | E67: 16 | F67: 240
A68: 44111611 | B68: Clips para billetes | C68: Caja | D68: 12 | E68: 50 | F68: 600
A69: 44111611 | B69: Clips para billetes | C69: Caja | D69: 8 | E69: 50 | F69: 400
A70: 44111611 | B70: Clips para billetes | C70: Caja | D70: 6 | E70: 60 | F70: 360
A71: 44121802 | B71: Fluido de corrección | C71: Unidad | D71: 3 | E71: 57.82 | F71: 173.46
A72: 44121802 | B72: Fluido de corrección | C72: Caja | D72: 6 | E72: 695 | F72: 4170
A73: 44121605 | B73: Dispensadores de cinta | C73: Unidad | D73: 12 | E73: 80 | F73: 960
A74: 44103504 | B74: Alambres o espirales de encuadernación | C74: Caja | D74: 8 | E74: 550 | F74: 4400
A75: 44103504 | B75: Alambres o espirales de encuadernación | C75: Caja | D75: 6 | E75: 413 | F75: 2478
A76: 44121707 | B76: Lápices de colores | C76: Caja | D76: 3 | E76: 300 | F76: 900
A77: 44122027 | B77: Folders de archivo expandibles | C77: Caja | D77: 2 | E77: 1218 | F77: 2436
A78: 44122027 | B78: Folders de archivo expandibles | C78: Caja | D78: 6 | E78: 1000 | F78: 6000
A79: 44122027 | B79: Folders de archivo expandibles | C79: Caja | D79: 6 | E79: 1000 | F79: 6000
A80: 44121804 | B80: Borradores | C80: Caja | D80: 3 | E80: 300 | F80: 900
A81: 44121615 | B81: Grapadoras | C81: Unidad | D81: 4 | E81: 1600 | F81: 6400
A82: 44121615 | B82: Grapadoras | C82: Unidad | D82: 6 | E82: 270 | F82: 1620
A83: 44121615 | B83: Grapadoras | C83: Unidad | D83: 25 | E83: 270 | F83: 6750
A84: 44122107 | B84: Grapas | C84: Caja | D84: 3 | E84: 100 | F84: 300
A85: 44121706 | B85: Lápices de madera | C85: Caja | D85: 72 | E85: 42 | F85: 3024
A86: 44121621 | B86: Almohadillas para escritorio o sus accesorios | C86: Unidad | D86: 36 | E86: 36 | F86: 1296
A87: 44122017 | B87: =IFERROR(INDEX(UNSPSCDes,MATCH(INDIRECT(ADDRESS(ROW(),COLUMN()-1,4)),UNSPSCCode,0)),"") -> Folders de colgar o accesorios | C87: Caja | D87: 3 | E87: 461 | F87: =INDIRECT(ADDRESS(ROW(),COLUMN()-2,4))*INDIRECT(ADDRESS(ROW(),COLUMN()-1,4)) -> 1383
A88: 44121628 | B88: Contenedores o dispensadores de clips | C88: Unidad | D88: 12 | E88: 36 | F88: 432
A89: 44111509 | B89: Sujetadores de esferos o lápices | C89: Unidad | D89: 12 | E89: 105 | F89: 1260
A90: 44122002 | B90: Protectores de hojas | C90: Paquete | D90: 6 | E90: 200 | F90: 1200
A91: 44111808 | B91: Reglas t | C91: Unidad | D91: 20 | E91: 30 | F91: 600
A92: 44111808 | B92: Reglas t | C92: Unidad | D92: 1 | E92: 48 | F92: 48
A93: 44121716 | B93: Resaltadores | C93: Caja | D93: 12 | E93: 180 | F93: 2160
A94: 44121716 | B94: Resaltadores | C94: Caja | D94: 6 | E94: 181 | F94: 1086
A95: 44121716 | B95: Resaltadores | C95: Caja | D95: 6 | E95: 181 | F95: 1086
A96: 44121619 | B96: Tajalápices manuales | C96: Unidad | D96: 1 | E96: 1357 | F96: 1357
A97: 44121503 | B97: Sobres | C97: Unidad | D97: 1000 | E97: 23.73 | F97: 23730
A98: 44121503 | B98: Sobres | C98: Unidad | D98: 36 | E98: 23.73 | F98: 854.28
A99: 44121503 | B99: Sobres | C99: Unidad | D99: 2 | E99: 4 | F99: 8
A100: 44121503 | B100: Sobres | C100: Caja | D100: 2 | E100: 80 | F100: 160
A101: 44121503 | B101: Sobres | C101: Caja | D101: 2 | E101: 3 | F101: 6
A102: 44103502 | B102: Tapas de encuadernación | C102: Caja | D102: 39 | E102: 410 | F102: 15990
A103: 44121618 | B103: Tijeras | C103: Unidad | D103: 36 | E103: 42 | F103: 1512
A104: 26121501 | B104: Alambre calentador | C104: Paquete | D104: 40 | E104: 43 | F104: 1720
A105: 26121501 | B105: Alambre calentador | C105: Unidad | D105: 40 | E105: 43 | F105: 1720
A106: 26121704 | B106: Arnés de alambrado especial | C106: Unidad | D106: 24 | E106: 965 | F106: 23160
A107: 43202001 | B107: Discos compactos cd | C107: Unidad | D107: 500 | E107: 20 | F107: 10000
A108: 44101805 | B108: Cintas para calculadoras | C108: Unidad | D108: 3 | E108: 50 | F108: 150
A109: 43201810 | B109: Disco versátil digital dvd de sólo lectura | C109: Unidad | D109: 6 | E109: 42 | F109: 252
A110: 43202005 | B110: Tarjeta flash de almacenamiento de memoria | C110: Unidad | D110: 25 | E110: 803 | F110: 20075
A111: 43202005 | B111: Tarjeta flash de almacenamiento de memoria | C111: Unidad | D111: 24 | E111: 803 | F111: 19272
A112: 43202005 | B112: Tarjeta flash de almacenamiento de memoria | C112: Unidad | D112: 25 | E112: 1055 | F112: 26375
A113: 43202005 | B113: Tarjeta flash de almacenamiento de memoria | C113: Unidad | D113: 5 | E113: 1055 | F113: 5275
A114: 43202005 | B114: Tarjeta flash de almacenamiento de memoria | C114: Unidad | D114: 24 | E114: 1055 | F114: 25320
A115: 44101716 | B115: Unidades de perforación de orificios | C115: Unidad | D115: 6 | E115: 400 | F115: 2400
A116: 24112006 | B116: Canastas no metálicas | C116: Unidad | D116: 1 | E116: 300 | F116: 300
A117: 31201503 | B117: Cinta de enmascarar | C117: Unidad | D117: 36 | E117: 65 | F117: 2340
A118: 31201505 | B118: Cinta doble faz | C118: Unidad | D118: 8 | E118: 233 | F118: 1864
A119: 31201523 | B119: Cinta de tela | C119: Unidad | D119: 35 | E119: 60 | F119: 2100
A120: 31201610 | B120: Pegamentos | C120: Unidad | D120: 1 | E120: 77 | F120: 77
A121: 31201610 | B121: Pegamentos | C121: Unidad | D121: 4 | E121: 148 | F121: 592
E122: TOTAL COMPRA ESTIMADA | F122: =SUM(Table4[MONTO TOTAL ESTIMADO]) -> 602042.84 | H122: =C16 -> Bienes | I122: =E16 -> Sí | J122: =D16 -> Compras Menores
A124: NOMBRE O REFERENCIA DE CONTRATACIÓN | B124: FINALIDAD DE LA CONTRATACIÓN | C124: OBJETO DE CONTRATACIÓN | D124: PROCEDIMIENTO DE SELECCIÓN | E124: DESTINADO A MIPYMES | F124: CÓDIGO SNIP
A125: Adquisición de Publicidad para los medios digitales | B125: Publicidad para los medios digitales | C125: Servicios | D125: Compras Menores | E125: No
A126: FECHA DE NECESSIDAD | B126: FECHA INICIO PROCESO DE COMPRA | C126: 2022-02-21 | D126: LUGAR DE EJECUCIÓN / ENTREGA | E126: Región | F126: OZAMA O METROPOLITANA
B127: TRIMESTRE | C127: =IF(C126="","",IF(AND(MONTH(C126)>=1,MONTH(C126)<=3),1,IF(AND(MONTH(C126)>=4,MONTH(C126)<=6),2,IF(AND(MONTH(C126)>=7,MONTH(C126)<=9),3,4)))) -> 1 | E127: Provincia | F127: Distrito Nacional
B128: FECHA PREVISTA ADJUDICACIÓN | C128: 2022-03-01 | E128: Municipio | F128: Distrito Nacional
B129: TRIMESTRE | C129: =IF(C128="","",IF(AND(MONTH(C128)>=1,MONTH(C128)<=3),1,IF(AND(MONTH(C128)>=4,MONTH(C128)<=6),2,IF(AND(MONTH(C128)>=7,MONTH(C128)<=9),3,4)))) -> 1 | E129: Distrito Municipal | F129: Distrito Nacional
A131: CÓDIGO CATÁLOGO | B131: ARTÍCULO | C131: UNIDAD DE MEDIDA | D131: CANTIDAD TOTAL ESTIMADA | E131: PRECIO UNITARIO ESTIMADO | F131: MONTO TOTAL ESTIMADO
A132: 82101801 | B132: =IFERROR(INDEX(UNSPSCDes,MATCH(INDIRECT(ADDRESS(ROW(),COLUMN()-1,4)),UNSPSCCode,0)),"") -> Servicios de campañas publicitarias | C132: Unidad | D132: 2 | E132: 110000 | F132: =INDIRECT(ADDRESS(ROW(),COLUMN()-2,4))*INDIRECT(ADDRESS(ROW(),COLUMN()-1,4)) -> 220000
E133: TOTAL COMPRA ESTIMADA | F133: =SUM(Table32[MONTO TOTAL ESTIMADO]) -> 220000 | H133: =C125 -> Servicios | I133: =E125 -> No | J133: =D125 -> Compras Menores
A135: NOMBRE O REFERENCIA DE CONTRATACIÓN | B135: FINALIDAD DE LA CONTRATACIÓN | C135: OBJETO DE CONTRATACIÓN | D135: PROCEDIMIENTO DE SELECCIÓN | E135: DESTINADO A MIPYMES | F135: CÓDIGO SNIP
A136: Contratación Servicio de Impresiones varias | B136: Impresiones | C136: Servicios | D136: Compras Menores | E136: MIPYME Mujeres
A137: FECHA DE NECESSIDAD | B137: FECHA INICIO PROCESO DE COMPRA | C137: 2022-02-21 | D137: LUGAR DE EJECUCIÓN / ENTREGA | E137: Región | F137: OZAMA O METROPOLITANA
B138: TRIMESTRE | C138: =IF(C137="","",IF(AND(MONTH(C137)>=1,MONTH(C137)<=3),1,IF(AND(MONTH(C137)>=4,MONTH(C137)<=6),2,IF(AND(MONTH(C137)>=7,MONTH(C137)<=9),3,4)))) -> 1 | E138: Provincia | F138: Distrito Nacional
B139: FECHA PREVISTA ADJUDICACIÓN | C139: 2022-03-01 | E139: Municipio | F139: Distrito Nacional
B140: TRIMESTRE | C140: =IF(C139="","",IF(AND(MONTH(C139)>=1,MONTH(C139)<=3),1,IF(AND(MONTH(C139)>=4,MONTH(C139)<=6),2,IF(AND(MONTH(C139)>=7,MONTH(C139)<=9),3,4)))) -> 1 | E140: Distrito Municipal | F140: Distrito Nacional
A142: CÓDIGO CATÁLOGO | B142: ARTÍCULO | C142: UNIDAD DE MEDIDA | D142: CANTIDAD TOTAL ESTIMADA | E142: PRECIO UNITARIO ESTIMADO | F142: MONTO TOTAL ESTIMADO
A143: 73151905 | B143: =IFERROR(INDEX(UNSPSCDes,MATCH(INDIRECT(ADDRESS(ROW(),COLUMN()-1,4)),UNSPSCCode,0)),"") -> Servicios de impresión industrial digital | C143: Unidad | D143: 15 | E143: 50 | F143: =INDIRECT(ADDRESS(ROW(),COLUMN()-2,4))*INDIRECT(ADDRESS(ROW(),COLUMN()-1,4)) -> 750
A144: 82121503 | B144: Impresión digital | C144: Unidad | D144: 2 | E144: 4300 | F144: 8600
A145: 82121503 | B145: Impresión digital | C145: Unidad | D145: 4 | E145: 4300 | F145: 17200
A146: 73151905 | B146: Servicios de impresión industrial digital | C146: Unidad | D146: 600 | E146: 65 | F146: 39000
A147: 82121503 | B147: Impresión digital | C147: Unidad | D147: 400 | E147: 100 | F147: 40000
A148: 73151905 | B148: Servicios de impresión industrial digital | C148: Unidad | D148: 500 | E148: 100 | F148: 50000
A149: 73151905 | B149: Servicios de impresión industrial digital | C149: Unidad | D149: 3200 | E149: 65 | F149: 208000
A150: 14111815 | B150: Tarjetas de identificación | C150: Paquete | D150: 10 | E150: 2750 | F150: 27500
A151: 14111815 | B151: Tarjetas de identificación | C151: Paquete | D151: 60 | E151: 2750 | F151: 165000
E152: TOTAL COMPRA ESTIMADA | F152: =SUM(Table33[MONTO TOTAL ESTIMADO]) -> 556050 | H152: =C136 -> Servicios | I152: =E136 -> MIPYME Mujeres | J152: =D136 -> Compras Menores
A154: NOMBRE O REFERENCIA DE CONTRATACIÓN | B154: FINALIDAD DE LA CONTRATACIÓN | C154: OBJETO DE CONTRATACIÓN | D154: PROCEDIMIENTO DE SELECCIÓN | E154: DESTINADO A MIPYMES | F154: CÓDIGO SNIP
A155: Adquisición de Renovación Licencias | B155: Renovación Licencias | C155: Bienes | D155: Compras Menores | E155: No
A156: FECHA DE NECESSIDAD | B156: FECHA INICIO PROCESO DE COMPRA | C156: 2022-03-14 | D156: LUGAR DE EJECUCIÓN / ENTREGA | E156: Región | F156: OZAMA O METROPOLITANA
B157: TRIMESTRE | C157: =IF(C156="","",IF(AND(MONTH(C156)>=1,MONTH(C156)<=3),1,IF(AND(MONTH(C156)>=4,MONTH(C156)<=6),2,IF(AND(MONTH(C156)>=7,MONTH(C156)<=9),3,4)))) -> 1 | E157: Provincia | F157: Distrito Nacional
B158: FECHA PREVISTA ADJUDICACIÓN | C158: 2022-03-22 | E158: Municipio | F158: Distrito Nacional
B159: TRIMESTRE | C159: =IF(C158="","",IF(AND(MONTH(C158)>=1,MONTH(C158)<=3),1,IF(AND(MONTH(C158)>=4,MONTH(C158)<=6),2,IF(AND(MONTH(C158)>=7,MONTH(C158)<=9),3,4)))) -> 1 | E159: Distrito Municipal | F159: Distrito Nacional
A161: CÓDIGO CATÁLOGO | B161: ARTÍCULO | C161: UNIDAD DE MEDIDA | D161: CANTIDAD TOTAL ESTIMADA | E161: PRECIO UNITARIO ESTIMADO | F161: MONTO TOTAL ESTIMADO
A162: 43232102 | B162: =IFERROR(INDEX(UNSPSCDes,MATCH(INDIRECT(ADDRESS(ROW(),COLUMN()-1,4)),UNSPSCCode,0)),"") -> Software de imágenes gráficas o de fotografía | C162: Unidad | D162: 5 | E162: 75000 | F162: =INDIRECT(ADDRESS(ROW(),COLUMN()-2,4))*INDIRECT(ADDRESS(ROW(),COLUMN()-1,4)) -> 375000
E163: TOTAL COMPRA ESTIMADA | F163: =SUM(Table36[MONTO TOTAL ESTIMADO]) -> 375000 | H163: =C155 -> Bienes | I163: =E155 -> No | J163: =D155 -> Compras Menores
A165: NOMBRE O REFERENCIA DE CONTRATACIÓN | B165: FINALIDAD DE LA CONTRATACIÓN | C165: OBJETO DE CONTRATACIÓN | D165: PROCEDIMIENTO DE SELECCIÓN | E165: DESTINADO A MIPYMES | F165: CÓDIGO SNIP
A166: Adquisición servicio de Reparación de PC, Impresoras y Fotocopiadora | B166: Reparación de PC, Impresoras y Fotocopiadora | C166: Servicios | D166: Compras por debajo del Umbral | E166: Sí
A167: FECHA DE NECESSIDAD | B167: FECHA INICIO PROCESO DE COMPRA | C167: 2022-02-21 | D167: LUGAR DE EJECUCIÓN / ENTREGA | E167: Región | F167: OZAMA O METROPOLITANA
B168: TRIMESTRE | C168: =IF(C167="","",IF(AND(MONTH(C167)>=1,MONTH(C167)<=3),1,IF(AND(MONTH(C167)>=4,MONTH(C167)<=6),2,IF(AND(MONTH(C167)>=7,MONTH(C167)<=9),3,4)))) -> 1 | E168: Provincia | F168: Distrito Nacional
B169: FECHA PREVISTA ADJUDICACIÓN | C169: 2022-02-24 | E169: Municipio | F169: Distrito Nacional
B170: TRIMESTRE | C170: =IF(C169="","",IF(AND(MONTH(C169)>=1,MONTH(C169)<=3),1,IF(AND(MONTH(C169)>=4,MONTH(C169)<=6),2,IF(AND(MONTH(C169)>=7,MONTH(C169)<=9),3,4)))) -> 1 | E170: Distrito Municipal | F170: Distrito Nacional
A172: CÓDIGO CATÁLOGO | B172: ARTÍCULO | C172: UNIDAD DE MEDIDA | D172: CANTIDAD TOTAL ESTIMADA | E172: PRECIO UNITARIO ESTIMADO | F172: MONTO TOTAL ESTIMADO
A173: 81111812 | B173: =IFERROR(INDEX(UNSPSCDes,MATCH(INDIRECT(ADDRESS(ROW(),COLUMN()-1,4)),UNSPSCCode,0)),"") -> Servicio de mantenimiento o soporte del hardware del computador | C173: Unidad | D173: 1 | E173: 50000 | F173: =INDIRECT(ADDRESS(ROW(),COLUMN()-2,4))*INDIRECT(ADDRESS(ROW(),COLUMN()-1,4)) -> 50000
E174: TOTAL COMPRA ESTIMADA | F174: =SUM(Table37[MONTO TOTAL ESTIMADO]) -> 50000 | H174: =C166 -> Servicios | I174: =E166 -> Sí | J174: =D166 -> Compras por debajo del Umbral
A176: NOMBRE O REFERENCIA DE CONTRATACIÓN | B176: FINALIDAD DE LA CONTRATACIÓN | C176: OBJETO DE CONTRATACIÓN | D176: PROCEDIMIENTO DE SELECCIÓN | E176: DESTINADO A MIPYMES | F176: CÓDIGO SNIP
A177: Adquisición Servicio de mantenimiento y/o reparación de Vehículos | B177: Mantenimiento y/o reparación de Vehículos | C177: Servicios | D177: Comparacion de Precios | E177: No
A178: FECHA DE NECESSIDAD | B178: FECHA INICIO PROCESO DE COMPRA | C178: 2022-02-21 | D178: LUGAR DE EJECUCIÓN / ENTREGA | E178: Región | F178: OZAMA O METROPOLITANA
B179: TRIMESTRE | C179: =IF(C178="","",IF(AND(MONTH(C178)>=1,MONTH(C178)<=3),1,IF(AND(MONTH(C178)>=4,MONTH(C178)<=6),2,IF(AND(MONTH(C178)>=7,MONTH(C178)<=9),3,4)))) -> 1 | E179: Provincia | F179: Distrito Nacional
B180: FECHA PREVISTA ADJUDICACIÓN | C180: 2022-03-25 | E180: Municipio | F180: Distrito Nacional
B181: TRIMESTRE | C181: =IF(C180="","",IF(AND(MONTH(C180)>=1,MONTH(C180)<=3),1,IF(AND(MONTH(C180)>=4,MONTH(C180)<=6),2,IF(AND(MONTH(C180)>=7,MONTH(C180)<=9),3,4)))) -> 1 | E181: Distrito Municipal | F181: Distrito Nacional
A183: CÓDIGO CATÁLOGO | B183: ARTÍCULO | C183: UNIDAD DE MEDIDA | D183: CANTIDAD TOTAL ESTIMADA | E183: PRECIO UNITARIO ESTIMADO | F183: MONTO TOTAL ESTIMADO
A184: 78180102 | B184: =IFERROR(INDEX(UNSPSCDes,MATCH(INDIRECT(ADDRESS(ROW(),COLUMN()-1,4)),UNSPSCCode,0)),"") -> Reparación de Transmisión | C184: Unidad | D184: 1 | E184: 1100000 | F184: =INDIRECT(ADDRESS(ROW(),COLUMN()-2,4))*INDIRECT(ADDRESS(ROW(),COLUMN()-1,4)) -> 1100000
E185: TOTAL COMPRA ESTIMADA | F185: =SUM(Table39[MONTO TOTAL ESTIMADO]) -> 1100000 | H185: =C177 -> Servicios | I185: =E177 -> No | J185: =D177 -> Comparacion de Precios
A187: NOMBRE O REFERENCIA DE CONTRATACIÓN | B187: FINALIDAD DE LA CONTRATACIÓN | C187: OBJETO DE CONTRATACIÓN | D187: PROCEDIMIENTO DE SELECCIÓN | E187: DESTINADO A MIPYMES | F187: CÓDIGO SNIP
A188: Adquisición servicio fumigación institucional y especializada | B188: Fumigación institucional y especializada | C188: Servicios | D188: Compras por debajo del Umbral | E188: Sí
A189: FECHA DE NECESSIDAD | B189: FECHA INICIO PROCESO DE COMPRA | C189: 2022-03-28 | D189: LUGAR DE EJECUCIÓN / ENTREGA | E189: Región | F189: OZAMA O METROPOLITANA
B190: TRIMESTRE | C190: =IF(C189="","",IF(AND(MONTH(C189)>=1,MONTH(C189)<=3),1,IF(AND(MONTH(C189)>=4,MONTH(C189)<=6),2,IF(AND(MONTH(C189)>=7,MONTH(C189)<=9),3,4)))) -> 1 | E190: Provincia | F190: Distrito Nacional
B191: FECHA PREVISTA ADJUDICACIÓN | C191: 2022-03-31 | E191: Municipio | F191: Distrito Nacional
B192: TRIMESTRE | C192: =IF(C191="","",IF(AND(MONTH(C191)>=1,MONTH(C191)<=3),1,IF(AND(MONTH(C191)>=4,MONTH(C191)<=6),2,IF(AND(MONTH(C191)>=7,MONTH(C191)<=9),3,4)))) -> 1 | E192: Distrito Municipal | F192: Distrito Nacional
A194: CÓDIGO CATÁLOGO | B194: ARTÍCULO | C194: UNIDAD DE MEDIDA | D194: CANTIDAD TOTAL ESTIMADA | E194: PRECIO UNITARIO ESTIMADO | F194: MONTO TOTAL ESTIMADO
A195: 72102103 | B195: =IFERROR(INDEX(UNSPSCDes,MATCH(INDIRECT(ADDRESS(ROW(),COLUMN()-1,4)),UNSPSCCode,0)),"") -> Servicios de exterminación o fumigación | C195: Unidad | D195: 1 | E195: 100000 | F195: =INDIRECT(ADDRESS(ROW(),COLUMN()-2,4))*INDIRECT(ADDRESS(ROW(),COLUMN()-1,4)) -> 100000
E196: TOTAL COMPRA ESTIMADA | F196: =SUM(Table310[MONTO TOTAL ESTIMADO]) -> 100000 | H196: =C188 -> Servicios | I196: =E188 -> Sí | J196: =D188 -> Compras por debajo del Umbral
A198: NOMBRE O REFERENCIA DE CONTRATACIÓN | B198: FINALIDAD DE LA CONTRATACIÓN | C198: OBJETO DE CONTRATACIÓN | D198: PROCEDIMIENTO DE SELECCIÓN | E198: DESTINADO A MIPYMES | F198: CÓDIGO SNIP
A199: Adquisición refrigerio para actividades de la Institución | B199: Refrigerio para actividades | C199: Servicios | D199: Compras Menores | E199: Sí
A200: FECHA DE NECESSIDAD | B200: FECHA INICIO PROCESO DE COMPRA | C200: 2022-02-14 | D200: LUGAR DE EJECUCIÓN / ENTREGA | E200: Región | F200: OZAMA O METROPOLITANA
B201: TRIMESTRE | C201: =IF(C200="","",IF(AND(MONTH(C200)>=1,MONTH(C200)<=3),1,IF(AND(MONTH(C200)>=4,MONTH(C200)<=6),2,IF(AND(MONTH(C200)>=7,MONTH(C200)<=9),3,4)))) -> 1 | E201: Provincia | F201: Distrito Nacional
B202: FECHA PREVISTA ADJUDICACIÓN | C202: 2022-02-22 | E202: Municipio | F202: Distrito Nacional
B203: TRIMESTRE | C203: =IF(C202="","",IF(AND(MONTH(C202)>=1,MONTH(C202)<=3),1,IF(AND(MONTH(C202)>=4,MONTH(C202)<=6),2,IF(AND(MONTH(C202)>=7,MONTH(C202)<=9),3,4)))) -> 1 | E203: Distrito Municipal | F203: Distrito Nacional
A205: CÓDIGO CATÁLOGO | B205: ARTÍCULO | C205: UNIDAD DE MEDIDA | D205: CANTIDAD TOTAL ESTIMADA | E205: PRECIO UNITARIO ESTIMADO | F205: MONTO TOTAL ESTIMADO
A206: 50192701 | B206: =IFERROR(INDEX(UNSPSCDes,MATCH(INDIRECT(ADDRESS(ROW(),COLUMN()-1,4)),UNSPSCCode,0)),"") -> Comidas combinadas frescas | C206: Unidad | D206: 100 | E206: 355 | F206: =INDIRECT(ADDRESS(ROW(),COLUMN()-2,4))*INDIRECT(ADDRESS(ROW(),COLUMN()-1,4)) -> 35500
A207: 50192701 | B207: =IFERROR(INDEX(UNSPSCDes,MATCH(INDIRECT(ADDRESS(ROW(),COLUMN()-1,4)),UNSPSCCode,0)),"") -> Comidas combinadas frescas | C207: Unidad | D207: 450 | E207: 355 | F207: =INDIRECT(ADDRESS(ROW(),COLUMN()-2,4))*INDIRECT(ADDRESS(ROW(),COLUMN()-1,4)) -> 159750
A208: 50192701 | B208: =IFERROR(INDEX(UNSPSCDes,MATCH(INDIRECT(ADDRESS(ROW(),COLUMN()-1,4)),UNSPSCCode,0)),"") -> Comidas combinadas frescas | C208: Unidad | D208: 740 | E208: 355 | F208: =INDIRECT(ADDRESS(ROW(),COLUMN()-2,4))*INDIRECT(ADDRESS(ROW(),COLUMN()-1,4)) -> 262700
E209: TOTAL COMPRA ESTIMADA | F209: =SUM(Table311[MONTO TOTAL ESTIMADO]) -> 457950 | H209: =C199 -> Servicios | I209: =E199 -> Sí | J209: =D199 -> Compras Menores
A211: NOMBRE O REFERENCIA DE CONTRATACIÓN | B211: FINALIDAD DE LA CONTRATACIÓN | C211: OBJETO DE CONTRATACIÓN | D211: PROCEDIMIENTO DE SELECCIÓN | E211: DESTINADO A MIPYMES | F211: CÓDIGO SNIP
A212: Adquisición servicio de alquiler de Sillas | B212: Alquiler de Sillas | C212: Servicios | D212: Compras por debajo del Umbral | E212: No
A213: FECHA DE NECESSIDAD | B213: FECHA INICIO PROCESO DE COMPRA | C213: 2022-02-22 | D213: LUGAR DE EJECUCIÓN / ENTREGA | E213: Región | F213: OZAMA O METROPOLITANA
B214: TRIMESTRE | C214: =IF(C213="","",IF(AND(MONTH(C213)>=1,MONTH(C213)<=3),1,IF(AND(MONTH(C213)>=4,MONTH(C213)<=6),2,IF(AND(MONTH(C213)>=7,MONTH(C213)<=9),3,4)))) -> 1 | E214: Provincia | F214: Distrito Nacional
B215: FECHA PREVISTA ADJUDICACIÓN | C215: 2022-02-25 | E215: Municipio | F215: Distrito Nacional
B216: TRIMESTRE | C216: =IF(C215="","",IF(AND(MONTH(C215)>=1,MONTH(C215)<=3),1,IF(AND(MONTH(C215)>=4,MONTH(C215)<=6),2,IF(AND(MONTH(C215)>=7,MONTH(C215)<=9),3,4)))) -> 1 | E216: Distrito Municipal | F216: Distrito Nacional
A218: CÓDIGO CATÁLOGO | B218: ARTÍCULO | C218: UNIDAD DE MEDIDA | D218: CANTIDAD TOTAL ESTIMADA | E218: PRECIO UNITARIO ESTIMADO | F218: MONTO TOTAL ESTIMADO
A219: 80141902 | B219: =IFERROR(INDEX(UNSPSCDes,MATCH(INDIRECT(ADDRESS(ROW(),COLUMN()-1,4)),UNSPSCCode,0)),"") -> Reuniones y eventos | C219: Unidad | D219: 30 | E219: 200 | F219: =INDIRECT(ADDRESS(ROW(),COLUMN()-2,4))*INDIRECT(ADDRESS(ROW(),COLUMN()-1,4)) -> 6000
E220: TOTAL COMPRA ESTIMADA | F220: =SUM(Table312[MONTO TOTAL ESTIMADO]) -> 6000 | H220: =C212 -> Servicios | I220: =E212 -> No | J220: =D212 -> Compras por debajo del Umbral
A222: NOMBRE O REFERENCIA DE CONTRATACIÓN | B222: FINALIDAD DE LA CONTRATACIÓN | C222: OBJETO DE CONTRATACIÓN | D222: PROCEDIMIENTO DE SELECCIÓN | E222: DESTINADO A MIPYMES | F222: CÓDIGO SNIP
A223: Adquisición servicio montaje de stand para evento (Semana Económica BC) | B223: Servicio Montaje de Stand para Evento | C223: Servicios | D223: Compras por debajo del Umbral | E223: No
... 1906 more rows

Sheet Informacion (hidden)
A1: REGIONES | B1: PROVINCIAS | D1: MUNICIPIOS | G1: DISTRITOS MUNICIPALES
A2: REGION | B2: REGION | C2: PROVINCIA | D2: REGION | E2: PROVINCIA | F2: MUNICIPIO | G2: REGION | H2: PROVINCIA | I2: MUNICIPIO | J2: DISTRITO MUNICIPAL | L2: Procedimientos | N2: Destinado a MIPYME? | P2: Un | Q2: Desc. | S2: Objeto de Contratación | U2: Etiquetas necesarias
A3: CIBAO NORTE | B3: CIBAO NORTE | C3: Santiago | D3: CIBAO NORTE | E3: Santiago | F3: Santiago de los Caballeros | G3: CIBAO NORDESTE | H3: Duarte | I3: Arenoso | J3: Arenoso | L3: Comparacion de Precios | N3: Sí | P3: CAJ | Q3: Caja | S3: Bienes | U3: TOTAL COMPRA ESTIMADA
A4: CIBAO SUR | B4: CIBAO NORTE | C4: Puerto Plata | D4: CIBAO NORTE | E4: Santiago | F4: Sabana Iglesia | G4: CIBAO NORDESTE | H4: Duarte | I4: Arenoso | J4: El Aguacate | L4: Compras Menores | N4: MIPYME Mujeres | P4: CM | Q4: Centímetro | S4: Servicios
A5: CIBAO NORDESTE | B5: CIBAO NORTE | C5: Espaillat | D5: CIBAO NORTE | E5: Santiago | F5: Villa Bisonó (Navarrete) | G5: CIBAO NORDESTE | H5: Duarte | I5: Arenoso | J5: Las Coles | L5: Compras por debajo del Umbral | N5: No | P5: CM2 | Q5: Centímetro Cuadrado | S5: Servicios: Consultorías
A6: CIBAO NOROESTE | B6: CIBAO SUR | C6: Concepción de La Vega | D6: CIBAO NORTE | E6: Santiago | F6: Jánico | G6: CIBAO NORDESTE | H6: Duarte | I6: Castillo | J6: Castillo | L6: Excepción - Bienes o servicios con exclusividad | P6: CT | Q6: Ciento | S6: Servicios: Consultoría basada en la calidad de los servicios
A7: VALDESIA | B7: CIBAO SUR | C7: Monseñor Nouel | D7: CIBAO NORTE | E7: Santiago | F7: Licey al Medio | G7: CIBAO NORDESTE | H7: Duarte | I7: Hostos | J7: Hostos | L7: Excepción - Construcción, instalación o adquisición de oficinas para el servicio exterior | P7: DEC | Q7: Decena | S7: Obras
A8: ENRIQUILLO | B8: CIBAO SUR | C8: Sánchez Ramírez | D8: CIBAO NORTE | E8: Santiago | F8: San José de las Matas | G8: CIBAO NORDESTE | H8: Duarte | I8: Hostos | J8: Sabana Grande de Hostos | L8: Excepción - Contratación de publicidad a través de medios de comunicación social | P8: DM | Q8: Decímetro
A9: EL VALLE | B9: CIBAO NORDESTE | C9: Duarte | D9: CIBAO NORTE | E9: Santiago | F9: Tamboril | G9: CIBAO NORDESTE | H9: Duarte | I9: Las Guáranas | J9: Las Guáranas | L9: Excepción - Obras científicas, técnicas, artísticas, o restauración de monumentos históricos | P9: DÍA | Q9: Día
A10: YUMA | B10: CIBAO NORDESTE | C10: Hermanas Mirabal | D10: CIBAO NORTE | E10: Santiago | F10: Villa González | G10: CIBAO NORDESTE | H10: Duarte | I10: Pimentel | J10: Pimentel | L10: Excepción - Proveedor Único | P10: DOC | Q10: Docena
A11: HIGUAMO | B11: CIBAO NORDESTE | C11: María Trinidad Sánchez | D11: CIBAO NORTE | E11: Santiago | F11: Puñal | G11: CIBAO NORDESTE | H11: Duarte | I11: San Fco. de Macorís | J11: Cenoví | L11: Excepción - Rescisión de contratos cuya terminación no exceda el 40% del monto total del proyecto, obra o servicio | P11: GAL | Q11: Galón
A12: OZAMA O METROPOLITANA | B12: CIBAO NORDESTE | C12: Samaná | D12: CIBAO NORTE | E12: Puerto Plata | F12: San Felipe de Puerto Plata | G12: CIBAO NORDESTE | H12: Duarte | I12: San Fco. de Macorís | J12: Don Antonio Guzmán Fernández | L12: Excepción - Resolución 15-08 sobre compra y contratación de pasaje aéreo, combustible y reparación de vehículos de motor | P12: G | Q12: Gramo
B13: CIBAO NOROESTE | C13: Valverde | D13: CIBAO NORTE | E13: Puerto Plata | F13: Altamira | G13: CIBAO NORDESTE | H13: Duarte | I13: San Fco. de Macorís | J13: Jaya | L13: Licitacion Publica | P13: H | Q13: Hora
B14: CIBAO NOROESTE | C14: Santiago Rodriguez | D14: CIBAO NORTE | E14: Puerto Plata | F14: Guananico | G14: CIBAO NORDESTE | H14: Duarte | I14: San Fco. de Macorís | J14: La Peña | L14: Licitacion Publica Internacional | P14: H/H | Q14: Hora Hombre
B15: CIBAO NOROESTE | C15: Montecristi | D15: CIBAO NORTE | E15: Puerto Plata | F15: Imbert | G15: CIBAO NORDESTE | H15: Duarte | I15: San Fco. de Macorís | J15: San Fco. de Macorís | L15: Licitacion Restringida | P15: KG | Q15: Kilogramo
B16: CIBAO NOROESTE | C16: Dajabón | D16: CIBAO NORTE | E16: Puerto Plata | F16: Los Hidalgos | G16: CIBAO NORDESTE | H16: Duarte | I16: Villa Riva | J16: Agua Santa del Yuna | L16: Sorteo de Obras | P16: KM | Q16: Kilómetro
B17: VALDESIA | C17: San Cristóbal | D17: CIBAO NORTE | E17: Puerto Plata | F17: Luperón | G17: CIBAO NORDESTE | H17: Duarte | I17: Villa Riva | J17: Barraquito | L17: Subasta Inversa | P17: KM2 | Q17: Kilómetro cuadrado
B18: VALDESIA | C18: Peravia | D18: CIBAO NORTE | E18: Puerto Plata | F18: Sosúa | G18: CIBAO NORDESTE | H18: Duarte | I18: Villa Riva | J18: Cristo Rey de Guaraguao | P18: LB | Q18: Libra
B19: VALDESIA | C19: San José de Ocoa | D19: CIBAO NORTE | E19: Puerto Plata | F19: Villa Isabela | G19: CIBAO NORDESTE | H19: Duarte | I19: Villa Riva | J19: Las Táranas | P19: L | Q19: Litro
B20: VALDESIA | C20: Azua | D20: CIBAO NORTE | E20: Puerto Plata | F20: Villa Montellano | G20: CIBAO NORDESTE | H20: Duarte | I20: Villa Riva | J20: Villa Riva | P20: MES | Q20: Mes
B21: ENRIQUILLO | C21: Barahona | D21: CIBAO NORTE | E21: Espaillat | F21: Moca | G21: CIBAO NORDESTE | H21: Hermanas Mirabal | I21: Salcedo | J21: Jamao Afuera | P21: M | Q21: Metro
B22: ENRIQUILLO | C22: Bahoruco | D22: CIBAO NORTE | E22: Espaillat | F22: Cayetano Germosén | G22: CIBAO NORDESTE | H22: Hermanas Mirabal | I22: Salcedo | J22: Salcedo | P22: M2 | Q22: Metro cuadrado
B23: ENRIQUILLO | C23: Pedernales | D23: CIBAO NORTE | E23: Espaillat | F23: Gaspar Hernández | G23: CIBAO NORDESTE | H23: Hermanas Mirabal | I23: Tenares | J23: Blanco | P23: M3 | Q23: Metro cúbico
B24: ENRIQUILLO | C24: Independencia | D24: CIBAO NORTE | E24: Espaillat | F24: Jamao al Norte | G24: CIBAO NORDESTE | H24: Hermanas Mirabal | I24: Tenares | J24: Tenares | P24: MG | Q24: Miligramo
B25: EL VALLE | C25: San Juan | D25: CIBAO SUR | E25: Concepción de La Vega | F25: La Vega | G25: CIBAO NORDESTE | H25: Hermanas Mirabal | I25: Villa Tapia | J25: Villa Tapia | P25: MM | Q25: Milímetro
B26: EL VALLE | C26: Elías Piña | D26: CIBAO SUR | E26: Concepción de La Vega | F26: Constanza | G26: CIBAO NORDESTE | H26: María Trinidad Sánchez | I26: Cabrera | J26: Arroyo Salado | P26: MI | Q26: Milla
B27: YUMA | C27: La Romana | D27: CIBAO SUR | E27: Concepción de La Vega | F27: Jarabacoa | G27: CIBAO NORDESTE | H27: María Trinidad Sánchez | I27: Cabrera | J27: Cabrera | P27: MIL | Q27: Millar
B28: YUMA | C28: La Altagracia | D28: CIBAO SUR | E28: Concepción de La Vega | F28: Jima Abajo | G28: CIBAO NORDESTE | H28: María Trinidad Sánchez | I28: Cabrera | J28: La Entrada | P28: OZ | Q28: Onza
B29: YUMA | C29: El Seibo | D29: CIBAO SUR | E29: Monseñor Nouel | F29: Bonao | G29: CIBAO NORDESTE | H29: María Trinidad Sánchez | I29: El Factor | J29: El Factor | P29: PAQ | Q29: Paquete
B30: HIGUAMO | C30: San Pedro de Macorís | D30: CIBAO SUR | E30: Monseñor Nouel | F30: Maimón | G30: CIBAO NORDESTE | H30: María Trinidad Sánchez | I30: El Factor | J30: El Pozo | P30: FT | Q30: Pie
B31: HIGUAMO | C31: Hato Mayor | D31: CIBAO SUR | E31: Monseñor Nouel | F31: Piedra Blanca | G31: CIBAO NORDESTE | H31: María Trinidad Sánchez | I31: Nagua | J31: Arroyo al Medio | P31: FT2 | Q31: Pie cuadrado
B32: HIGUAMO | C32: Monte Plata | D32: CIBAO SUR | E32: Sánchez Ramírez | F32: Cotuí | G32: CIBAO NORDESTE | H32: María Trinidad Sánchez | I32: Nagua | J32: Las Gordas | P32: FT3 | Q32: Pie cúbico
B33: OZAMA O METROPOLITANA | C33: Distrito Nacional | D33: CIBAO SUR | E33: Sánchez Ramírez | F33: Cevicos | G33: CIBAO NORDESTE | H33: María Trinidad Sánchez | I33: Nagua | J33: Nagua | P33: IN | Q33: Pulgada
B34: OZAMA O METROPOLITANA | C34: Santo Domingo | D34: CIBAO SUR | E34: Sánchez Ramírez | F34: Fantino | G34: CIBAO NORDESTE | H34: María Trinidad Sánchez | I34: Nagua | J34: San José de Matanzas | P34: PULG | Q34: Pulgada
D35: CIBAO SUR | E35: Sánchez Ramírez | F35: La Mata | G35: CIBAO NORDESTE | H35: María Trinidad Sánchez | I35: Río San Juan | J35: Río San Juan | P35: IN2 | Q35: Pulgada cuadrada
D36: CIBAO NORDESTE | E36: Duarte | F36: San Fco. de Macorís | G36: CIBAO NORDESTE | H36: Samaná | I36: Las Terrenas | J36: Las Terrenas | P36: 500UD | Q36: Quinientas unidades
D37: CIBAO NORDESTE | E37: Duarte | F37: Arenoso | G37: CIBAO NORDESTE | H37: Samaná | I37: Sánchez | J37: Sánchez | P37: Q | Q37: Quintal
D38: CIBAO NORDESTE | E38: Duarte | F38: Castillo | G38: CIBAO NORDESTE | H38: Samaná | I38: Santa Bárbara de Samaná | J38: Arroyo Barril | P38: RESMA | Q38: Resma
D39: CIBAO NORDESTE | E39: Duarte | F39: Hostos | G39: CIBAO NORDESTE | H39: Samaná | I39: Santa Bárbara de Samaná | J39: El Limón | P39: SEM | Q39: Semana
D40: CIBAO NORDESTE | E40: Duarte | F40: Pimentel | G40: CIBAO NORDESTE | H40: Samaná | I40: Santa Bárbara de Samaná | J40: Las Galeras | P40: TON | Q40: Tonelada
D41: CIBAO NORDESTE | E41: Duarte | F41: Villa Riva | G41: CIBAO NORDESTE | H41: Samaná | I41: Santa Bárbara de Samaná | J41: Santa Bárbara de Samaná | P41: UD | Q41: Unidad
D42: CIBAO NORDESTE | E42: Duarte | F42: Las Guáranas | G42: CIBAO NOROESTE | H42: Dajabón | I42: Dajabón | J42: Cañongo | P42: YD | Q42: Yarda
D43: CIBAO NORDESTE | E43: Hermanas Mirabal | F43: Salcedo | G43: CIBAO NOROESTE | H43: Dajabón | I43: Dajabón | J43: Dajabón | P43: YD2 | Q43: Yarda cuadrada
D44: CIBAO NORDESTE | E44: Hermanas Mirabal | F44: Tenares | G44: CIBAO NOROESTE | H44: Dajabón | I44: El Pino | J44: El Pino
D45: CIBAO NORDESTE | E45: Hermanas Mirabal | F45: Villa Tapia | G45: CIBAO NOROESTE | H45: Dajabón | I45: El Pino | J45: Manuel Bueno
D46: CIBAO NORDESTE | E46: María Trinidad Sánchez | F46: Nagua | G46: CIBAO NOROESTE | H46: Dajabón | I46: Loma de Cabrera | J46: Capotillo
D47: CIBAO NORDESTE | E47: María Trinidad Sánchez | F47: Cabrera | G47: CIBAO NOROESTE | H47: Dajabón | I47: Loma de Cabrera | J47: Loma de Cabrera
D48: CIBAO NORDESTE | E48: María Trinidad Sánchez | F48: El Factor | G48: CIBAO NOROESTE | H48: Dajabón | I48: Loma de Cabrera | J48: Santiago de la Cruz
D49: CIBAO NORDESTE | E49: María Trinidad Sánchez | F49: Río San Juan | G49: CIBAO NOROESTE | H49: Dajabón | I49: Partido | J49: Partido
D50: CIBAO NORDESTE | E50: Samaná | F50: Santa Bárbara de Samaná | G50: CIBAO NOROESTE | H50: Dajabón | I50: Restauración | J50: Restauración
D51: CIBAO NORDESTE | E51: Samaná | F51: Sánchez | G51: CIBAO NOROESTE | H51: Montecristi | I51: Castañuelas | J51: Castañuelas
D52: CIBAO NORDESTE | E52: Samaná | F52: Las Terrenas | G52: CIBAO NOROESTE | H52: Montecristi | I52: Castañuelas | J52: Palo Verde
D53: CIBAO NOROESTE | E53: Valverde | F53: Santa Cruz de Mao | G53: CIBAO NOROESTE | H53: Montecristi | I53: Guayubín | J53: Cana Chapetón
D54: CIBAO NOROESTE | E54: Valverde | F54: Esperanza | G54: CIBAO NOROESTE | H54: Montecristi | I54: Guayubín | J54: Guayubín
D55: CIBAO NOROESTE | E55: Valverde | F55: Laguna Salada | G55: CIBAO NOROESTE | H55: Montecristi | I55: Guayubín | J55: Hatillo Palma
D56: CIBAO NOROESTE | E56: Santiago Rodriguez | F56: San Ignacio de Sabaneta | G56: CIBAO NOROESTE | H56: Montecristi | I56: Guayubín | J56: Villa Elisa
D57: CIBAO NOROESTE | E57: Santiago Rodriguez | F57: Villa los Almácigos | G57: CIBAO NOROESTE | H57: Montecristi | I57: Las Matas de Santa Cruz | J57: Las Matas de Santa Cruz
D58: CIBAO NOROESTE | E58: Santiago Rodriguez | F58: Monción | G58: CIBAO NOROESTE | H58: Montecristi | I58: Pepillo Salcedo | J58: Pepillo Salcedo
D59: CIBAO NOROESTE | E59: Montecristi | F59: San Fernando de Montecristi | G59: CIBAO NOROESTE | H59: Montecristi | I59: San Fernando de Montecristi | J59: San Fernando de Montecristi
D60: CIBAO NOROESTE | E60: Montecristi | F60: Castañuelas | G60: CIBAO NOROESTE | H60: Montecristi | I60: Villa Vásquez | J60: Villa Vásquez
D61: CIBAO NOROESTE | E61: Montecristi | F61: Guayubín | G61: CIBAO NOROESTE | H61: Santiago Rodriguez | I61: Monción | J61: Monción
D62: CIBAO NOROESTE | E62: Montecristi | F62: Las Matas de Santa Cruz | G62: CIBAO NOROESTE | H62: Santiago Rodriguez | I62: San Ignacio de Sabaneta | J62: San Ignacio de Sabaneta
D63: CIBAO NOROESTE | E63: Montecristi | F63: Pepillo Salcedo | G63: CIBAO NOROESTE | H63: Santiago Rodriguez | I63: Villa los Almácigos | J63: Villa los Almácigos
D64: CIBAO NOROESTE | E64: Montecristi | F64: Villa Vásquez | G64: CIBAO NOROESTE | H64: Valverde | I64: Esperanza | J64: Boca de Mao
D65: CIBAO NOROESTE | E65: Dajabón | F65: Dajabón | G65: CIBAO NOROESTE | H65: Valverde | I65: Esperanza | J65: Esperanza
D66: CIBAO NOROESTE | E66: Dajabón | F66: Loma de Cabrera | G66: CIBAO NOROESTE | H66: Valverde | I66: Esperanza | J66: Jicomé
D67: CIBAO NOROESTE | E67: Dajabón | F67: Restauración | G67: CIBAO NOROESTE | H67: Valverde | I67: Esperanza | J67: Maizal
D68: CIBAO NOROESTE | E68: Dajabón | F68: Partido | G68: CIBAO NOROESTE | H68: Valverde | I68: Esperanza | J68: Paradero
D69: CIBAO NOROESTE | E69: Dajabón | F69: El Pino | G69: CIBAO NOROESTE | H69: Valverde | I69: Laguna Salada | J69: Cruce de Guayacanes
D70: VALDESIA | E70: San Cristóbal | F70: San Cristóbal | G70: CIBAO NOROESTE | H70: Valverde | I70: Laguna Salada | J70: Jaibón (Laguna Salada)
D71: VALDESIA | E71: San Cristóbal | F71: Bajos de Haina | G71: CIBAO NOROESTE | H71: Valverde | I71: Laguna Salada | J71: La Caya
D72: VALDESIA | E72: San Cristóbal | F72: Los Cacaos | G72: CIBAO NOROESTE | H72: Valverde | I72: Laguna Salada | J72: Laguna Salada
D73: VALDESIA | E73: San Cristóbal | F73: Cambita Garabitos | G73: CIBAO NOROESTE | H73: Valverde | I73: Santa Cruz de Mao | J73: Ámina
D74: VALDESIA | E74: San Cristóbal | F74: San Gregorio de Nigua | G74: CIBAO NOROESTE | H74: Valverde | I74: Santa Cruz de Mao | J74: Guatapanal
D75: VALDESIA | E75: San Cristóbal | F75: Sabana Grande de Palenque | G75: CIBAO NOROESTE | H75: Valverde | I75: Santa Cruz de Mao | J75: Jaibón (Pueblo Nuevo)
D76: VALDESIA | E76: San Cristóbal | F76: Yaguate | G76: CIBAO NOROESTE | H76: Valverde | I76: Santa Cruz de Mao | J76: Santa Cruz de Mao
D77: VALDESIA | E77: San Cristóbal | F77: Villa Altagracia | G77: CIBAO NORTE | H77: Espaillat | I77: Cayetano Germosén | J77: Cayetano Germosén
D78: VALDESIA | E78: Peravia | F78: Baní | G78: CIBAO NORTE | H78: Espaillat | I78: Gaspar Hernández | J78: Gaspar Hernández
D79: VALDESIA | E79: Peravia | F79: Nizao | G79: CIBAO NORTE | H79: Espaillat | I79: Gaspar Hernández | J79: Joba Arriba
D80: VALDESIA | E80: San José de Ocoa | F80: San José de Ocoa | G80: CIBAO NORTE | H80: Espaillat | I80: Gaspar Hernández | J80: Veragua
D81: VALDESIA | E81: San José de Ocoa | F81: Sabana Larga | G81: CIBAO NORTE | H81: Espaillat | I81: Gaspar Hernández | J81: Villa Magante
D82: VALDESIA | E82: San José de Ocoa | F82: Rancho Arriba | G82: CIBAO NORTE | H82: Espaillat | I82: Jamao al Norte | J82: Jamao al Norte
D83: VALDESIA | E83: Azua | F83: Azua de Compostela | G83: CIBAO NORTE | H83: Espaillat | I83: Moca | J83: Canca la Reina
D84: VALDESIA | E84: Azua | F84: Guayabal | G84: CIBAO NORTE | H84: Espaillat | I84: Moca | J84: El Higuerito
D85: VALDESIA | E85: Azua | F85: Las Charcas | G85: CIBAO NORTE | H85: Espaillat | I85: Moca | J85: José Contreras
D86: VALDESIA | E86: Azua | F86: Las Yayas de Viajama | G86: CIBAO NORTE | H86: Espaillat | I86: Moca | J86: Juan López
D87: VALDESIA | E87: Azua | F87: Padre Las Casas | G87: CIBAO NORTE | H87: Espaillat | I87: Moca | J87: La Ortega
D88: VALDESIA | E88: Azua | F88: Peralta | G88: CIBAO NORTE | H88: Espaillat | I88: Moca | J88: Las Lagunas Abajo
D89: VALDESIA | E89: Azua | F89: Sabana Yegua | G89: CIBAO NORTE | H89: Espaillat | I89: Moca | J89: Moca
D90: VALDESIA | E90: Azua | F90: Tábara Arriba | G90: CIBAO NORTE | H90: Espaillat | I90: Moca | J90: Monte de la Jagua
D91: VALDESIA | E91: Azua | F91: Estebanía | G91: CIBAO NORTE | H91: Espaillat | I91: Moca | J91: San Víctor
D92: VALDESIA | E92: Azua | F92: Pueblo Viejo | G92: CIBAO NORTE | H92: Puerto Plata | I92: Altamira | J92: Altamira
D93: ENRIQUILLO | E93: Barahona | F93: Santa Cruz de Barahona | G93: CIBAO NORTE | H93: Puerto Plata | I93: Altamira | J93: Río Grande
D94: ENRIQUILLO | E94: Barahona | F94: Cabral | G94: CIBAO NORTE | H94: Puerto Plata | I94: Guananico | J94: Guananico
D95: ENRIQUILLO | E95: Barahona | F95: Enriquillo | G95: CIBAO NORTE | H95: Puerto Plata | I95: Imbert | J95: Imbert
D96: ENRIQUILLO | E96: Barahona | F96: Las Salinas | G96: CIBAO NORTE | H96: Puerto Plata | I96: Los Hidalgos | J96: Los Hidalgos
D97: ENRIQUILLO | E97: Barahona | F97: Paraíso | G97: CIBAO NORTE | H97: Puerto Plata | I97: Los Hidalgos | J97: Navas
D98: ENRIQUILLO | E98: Barahona | F98: Polo | G98: CIBAO NORTE | H98: Puerto Plata | I98: Luperón | J98: Belloso
D99: ENRIQUILLO | E99: Barahona | F99: Vicente Noble | G99: CIBAO NORTE | H99: Puerto Plata | I99: Luperón | J99: El Estrecho de Luperón Omar Bross
D100: ENRIQUILLO | E100: Barahona | F100: El Peñón | G100: CIBAO NORTE | H100: Puerto Plata | I100: Luperón | J100: La Isabela
D101: ENRIQUILLO | E101: Barahona | F101: Fundación | G101: CIBAO NORTE | H101: Puerto Plata | I101: Luperón | J101: Luperón
D102: ENRIQUILLO | E102: Barahona | F102: La Ciénaga | G102: CIBAO NORTE | H102: Puerto Plata | I102: San Felipe de Puerto Plata | J102: Maimón
D103: ENRIQUILLO | E103: Barahona | F103: Jaquimeyes | G103: CIBAO NORTE | H103: Puerto Plata | I103: San Felipe de Puerto Plata | J103: San Felipe de Puerto Plata
D104: ENRIQUILLO | E104: Bahoruco | F104: Neyba | G104: CIBAO NORTE | H104: Puerto Plata | I104: San Felipe de Puerto Plata | J104: Yásica Arriba
D105: ENRIQUILLO | E105: Bahoruco | F105: Galván | G105: CIBAO NORTE | H105: Puerto Plata | I105: Sosúa | J105: Cabarete
D106: ENRIQUILLO | E106: Bahoruco | F106: Los Ríos | G106: CIBAO NORTE | H106: Puerto Plata | I106: Sosúa | J106: Sabaneta de Yásica
D107: ENRIQUILLO | E107: Bahoruco | F107: Tamayo | G107: CIBAO NORTE | H107: Puerto Plata | I107: Sosúa | J107: Sosúa
D108: ENRIQUILLO | E108: Bahoruco | F108: Villa Jaragua | G108: CIBAO NORTE | H108: Puerto Plata | I108: Villa Isabela | J108: Estero Hondo
D109: ENRIQUILLO | E109: Pedernales | F109: Pedernales | G109: CIBAO NORTE | H109: Puerto Plata | I109: Villa Isabela | J109: Gualete
D110: ENRIQUILLO | E110: Pedernales | F110: Oviedo | G110: CIBAO NORTE | H110: Puerto Plata | I110: Villa Isabela | J110: La Jaiba
D111: ENRIQUILLO | E111: Independencia | F111: Jimaní | G111: CIBAO NORTE | H111: Puerto Plata | I111: Villa Isabela | J111: Villa Isabela
D112: ENRIQUILLO | E112: Independencia | F112: Duvergé | G112: CIBAO NORTE | H112: Puerto Plata | I112: Villa Montellano | J112: Villa Montellano
D113: ENRIQUILLO | E113: Independencia | F113: La Descubierta | G113: CIBAO NORTE | H113: Santiago | I113: Jánico | J113: El Caimito
D114: ENRIQUILLO | E114: Independencia | F114: Mella | G114: CIBAO NORTE | H114: Santiago | I114: Jánico | J114: Jánico
D115: ENRIQUILLO | E115: Independencia | F115: Postrer Río | G115: CIBAO NORTE | H115: Santiago | I115: Jánico | J115: Juncalito
D116: ENRIQUILLO | E116: Independencia | F116: Cristóbal | G116: CIBAO NORTE | H116: Santiago | I116: Licey al Medio | J116: Las Palomas
D117: EL VALLE | E117: San Juan | F117: San Juan de la Maguana | G117: CIBAO NORTE | H117: Santiago | I117: Licey al Medio | J117: Licey al Medio
D118: EL VALLE | E118: San Juan | F118: Bohechio | G118: CIBAO NORTE | H118: Santiago | I118: Puñal | J118: Canabacoa
D119: EL VALLE | E119: San Juan | F119: El Cercado | G119: CIBAO NORTE | H119: Santiago | I119: Puñal | J119: Guayabal
D120: EL VALLE | E120: San Juan | F120: Juan de Herrera | G120: CIBAO NORTE | H120: Santiago | I120: Puñal | J120: Puñal
D121: EL VALLE | E121: San Juan | F121: Las Matas de Farfán | G121: CIBAO NORTE | H121: Santiago | I121: Sabana Iglesia | J121: Sabana Iglesia
D122: EL VALLE | E122: San Juan | F122: Vallejuelo | G122: CIBAO NORTE | H122: Santiago | I122: San José de las Matas | J122: El Rubio
D123: EL VALLE | E123: Elías Piña | F123: Comendador | G123: CIBAO NORTE | H123: Santiago | I123: San José de las Matas | J123: La Cuesta
D124: EL VALLE | E124: Elías Piña | F124: Bánica | G124: CIBAO NORTE | H124: Santiago | I124: San José de las Matas | J124: Las Placetas
D125: EL VALLE | E125: Elías Piña | F125: El Llano | G125: CIBAO NORTE | H125: Santiago | I125: San José de las Matas | J125: San José de las Matas
D126: EL VALLE | E126: Elías Piña | F126: Hondo Valle | G126: CIBAO NORTE | H126: Santiago | I126: Santiago de los Caballeros | J126: Baitoa
D127: EL VALLE | E127: Elías Piña | F127: Pedro Santana | G127: CIBAO NORTE | H127: Santiago | I127: Santiago de los Caballeros | J127: Hato del Yaque
D128: EL VALLE | E128: Elías Piña | F128: Juan Santiago | G128: CIBAO NORTE | H128: Santiago | I128: Santiago de los Caballeros | J128: La Canela
D129: YUMA | E129: La Romana | F129: La Romana | G129: CIBAO NORTE | H129: Santiago | I129: Santiago de los Caballeros | J129: Pedro García
D130: YUMA | E130: La Romana | F130: Guaymate | G130: CIBAO NORTE | H130: Santiago | I130: Santiago de los Caballeros | J130: San Francisco de Jacagua
D131: YUMA | E131: La Romana | F131: Villa Hermosa | G131: CIBAO NORTE | H131: Santiago | I131: Santiago de los Caballeros | J131: Santiago de los Caballeros
D132: YUMA | E132: La Altagracia | F132: Salvaléon de Higüey | G132: CIBAO NORTE | H132: Santiago | I132: Tamboril | J132: Canca la Piedra
D133: YUMA | E133: La Altagracia | F133: San Rafael del Yuma | G133: CIBAO NORTE | H133: Santiago | I133: Tamboril | J133: Tamboril
D134: YUMA | E134: El Seibo | F134: Santa Cruz del Seibo | G134: CIBAO NORTE | H134: Santiago | I134: Villa Bisonó (Navarrete) | J134: Villa Bisonó (Navarrete)
D135: YUMA | E135: El Seibo | F135: Miches | G135: CIBAO NORTE | H135: Santiago | I135: Villa González | J135: El Limón
D136: HIGUAMO | E136: San Pedro de Macorís | F136: San Pedro de Macorís | G136: CIBAO NORTE | H136: Santiago | I136: Villa González | J136: Palmar Arriba
D137: HIGUAMO | E137: San Pedro de Macorís | F137: San José de los Llanos | G137: CIBAO NORTE | H137: Santiago | I137: Villa González | J137: Villa González
D138: HIGUAMO | E138: San Pedro de Macorís | F138: Ramón Santana | G138: CIBAO SUR | H138: Concepción de La Vega | I138: Constanza | J138: Constanza
D139: HIGUAMO | E139: San Pedro de Macorís | F139: Consuelo | G139: CIBAO SUR | H139: Concepción de La Vega | I139: Constanza | J139: La Sabina
D140: HIGUAMO | E140: San Pedro de Macorís | F140: Quisqueya | G140: CIBAO SUR | H140: Concepción de La Vega | I140: Constanza | J140: Tireo Arriba
D141: HIGUAMO | E141: San Pedro de Macorís | F141: Guayacanes | G141: CIBAO SUR | H141: Concepción de La Vega | I141: Jarabacoa | J141: Buena Vista
D142: HIGUAMO | E142: Hato Mayor | F142: Hato Mayor del Rey | G142: CIBAO SUR | H142: Concepción de La Vega | I142: Jarabacoa | J142: Jarabacoa
D143: HIGUAMO | E143: Hato Mayor | F143: Sabana de la Mar | G143: CIBAO SUR | H143: Concepción de La Vega | I143: Jarabacoa | J143: Manabao
D144: HIGUAMO | E144: Hato Mayor | F144: El Valle | G144: CIBAO SUR | H144: Concepción de La Vega | I144: Jima Abajo | J144: Jima Abajo
D145: HIGUAMO | E145: Monte Plata | F145: Monte Plata | G145: CIBAO SUR | H145: Concepción de La Vega | I145: Jima Abajo | J145: Rincón
D146: HIGUAMO | E146: Monte Plata | F146: Bayaguana | G146: CIBAO SUR | H146: Concepción de La Vega | I146: La Vega | J146: El Ranchito
D147: HIGUAMO | E147: Monte Plata | F147: Sabana Grande de Boyá | G147: CIBAO SUR | H147: Concepción de La Vega | I147: La Vega | J147: La Vega
D148: HIGUAMO | E148: Monte Plata | F148: Yamasá | G148: CIBAO SUR | H148: Concepción de La Vega | I148: La Vega | J148: Río Verde Arriba
D149: HIGUAMO | E149: Monte Plata | F149: Peralvillo | G149: CIBAO SUR | H149: Monseñor Nouel | I149: Bonao | J149: Arroyo Toro Masipedro
D150: OZAMA O METROPOLITANA | E150: Distrito Nacional | F150: Distrito Nacional | G150: CIBAO SUR | H150: Monseñor Nouel | I150: Bonao | J150: Bonao
D151: OZAMA O METROPOLITANA | E151: Santo Domingo | F151: Santo Domingo Este | G151: CIBAO SUR | H151: Monseñor Nouel | I151: Bonao | J151: Jayaco
D152: OZAMA O METROPOLITANA | E152: Santo Domingo | F152: Santo Domingo Oeste | G152: CIBAO SUR | H152: Monseñor Nouel | I152: Bonao | J152: Juma Bejucal
D153: OZAMA O METROPOLITANA | E153: Santo Domingo | F153: Santo Domingo Norte | G153: CIBAO SUR | H153: Monseñor Nouel | I153: Bonao | J153: La Salvia- Los Quemados
D154: OZAMA O METROPOLITANA | E154: Santo Domingo | F154: Boca Chica | G154: CIBAO SUR | H154: Monseñor Nouel | I154: Bonao | J154: Sabana del Puerto
D155: OZAMA O METROPOLITANA | E155: Santo Domingo | F155: Guerra | G155: CIBAO SUR | H155: Monseñor Nouel | I155: Maimón | J155: Maimón
D156: OZAMA O METROPOLITANA | E156: Santo Domingo | F156: Los Alcarrizos | G156: CIBAO SUR | H156: Monseñor Nouel | I156: Piedra Blanca | J156: Juan Adrián
D157: OZAMA O METROPOLITANA | E157: Santo Domingo | F157: Pedro Brand | G157: CIBAO SUR | H157: Monseñor Nouel | I157: Piedra Blanca | J157: Piedra Blanca
G158: CIBAO SUR | H158: Monseñor Nouel | I158: Piedra Blanca | J158: Villa de Sonador
G159: CIBAO SUR | H159: Sánchez Ramírez | I159: Cevicos | J159: Cevicos
G160: CIBAO SUR | H160: Sánchez Ramírez | I160: Cevicos | J160: La Cueva
G161: CIBAO SUR | H161: Sánchez Ramírez | I161: Cotuí | J161: Caballero
G162: CIBAO SUR | H162: Sánchez Ramírez | I162: Cotuí | J162: Comedero Arriba
G163: CIBAO SUR | H163: Sánchez Ramírez | I163: Cotuí | J163: Cotuí
G164: CIBAO SUR | H164: Sánchez Ramírez | I164: Cotuí | J164: Platanal
G165: CIBAO SUR | H165: Sánchez Ramírez | I165: Cotuí | J165: Quita Sueño
G166: CIBAO SUR | H166: Sánchez Ramírez | I166: Fantino | J166: Fantino
G167: CIBAO SUR | H167: Sánchez Ramírez | I167: La Mata | J167: Angelina
G168: CIBAO SUR | H168: Sánchez Ramírez | I168: La Mata | J168: Hernando Alonso
G169: CIBAO SUR | H169: Sánchez Ramírez | I169: La Mata | J169: La Bija
G170: CIBAO SUR | H170: Sánchez Ramírez | I170: La Mata | J170: La Mata
G171: EL VALLE | H171: Elías Piña | I171: Bánica | J171: Bánica
G172: EL VALLE | H172: Elías Piña | I172: Bánica | J172: Sabana Cruz
G173: EL VALLE | H173: Elías Piña | I173: Bánica | J173: Sabana Higüero
G174: EL VALLE | H174: Elías Piña | I174: Comendador | J174: Comendador
G175: EL VALLE | H175: Elías Piña | I175: Comendador | J175: Guayabo
G176: EL VALLE | H176: Elías Piña | I176: Comendador | J176: Sabana Larga
G177: EL VALLE | H177: Elías Piña | I177: El Llano | J177: El Llano
G178: EL VALLE | H178: Elías Piña | I178: El Llano | J178: Guanito
G179: EL VALLE | H179: Elías Piña | I179: Hondo Valle | J179: Hondo Valle
G180: EL VALLE | H180: Elías Piña | I180: Hondo Valle | J180: Rancho de la Guardia
G181: EL VALLE | H181: Elías Piña | I181: Juan Santiago | J181: Juan Santiago
G182: EL VALLE | H182: Elías Piña | I182: Pedro Santana | J182: Pedro Santana
G183: EL VALLE | H183: Elías Piña | I183: Pedro Santana | J183: Río Limpio
G184: EL VALLE | H184: San Juan | I184: Bohechio | J184: Arroyo Cano
G185: EL VALLE | H185: San Juan | I185: Bohechio | J185: Bohechio
G186: EL VALLE | H186: San Juan | I186: Bohechio | J186: El Yaque
G187: EL VALLE | H187: San Juan | I187: El Cercado | J187: Batista
G188: EL VALLE | H188: San Juan | I188: El Cercado | J188: El Cercado
G189: EL VALLE | H189: San Juan | I189: El Cercado | J189: Nuevo Brasil
G190: EL VALLE | H190: San Juan | I190: Juan de Herrera | J190: Jínova
G191: EL VALLE | H191: San Juan | I191: Juan de Herrera | J191: Juan de Herrera
G192: EL VALLE | H192: San Juan | I192: Las Matas de Farfán | J192: Carrera de Yeguas
G193: EL VALLE | H193: San Juan | I193: Las Matas de Farfán | J193: Las Matas de Farfán
G194: EL VALLE | H194: San Juan | I194: Las Matas de Farfán | J194: Matayaya
G195: EL VALLE | H195: San Juan | I195: San Juan de la Maguana | J195: El Rosario
G196: EL VALLE | H196: San Juan | I196: San Juan de la Maguana | J196: Guanito
G197: EL VALLE | H197: San Juan | I197: San Juan de la Maguana | J197: Hato del Padre
G198: EL VALLE | H198: San Juan | I198: San Juan de la Maguana | J198: La Jagua
G199: EL VALLE | H199: San Juan | I199: San Juan de la Maguana | J199: Las Charcas de María Nova
G200: EL VALLE | H200: San Juan | I200: San Juan de la Maguana | J200: Las Maguanas, Hato Nuevo
... 187 more rows

Sheet UNSPSC
A1: 10101501 | B1: Gatos
A2: 10101502 | B2: Perros
A3: 10101504 | B3: Visón
A4: 10101505 | B4: Ratas
A5: 10101506 | B5: Caballos
A6: 10101507 | B6: Ovejas
A7: 10101508 | B7: Cabras
A8: 10101509 | B8: Asnos
A9: 10101510 | B9: Ratones
A10: 10101511 | B10: Cerdos
A11: 10101512 | B11: Conejos
A12: 10101513 | B12: Cobayas o conejillos de indias
A13: 10101514 | B13: Primates
A14: 10101515 | B14: Armadillos
A15: 10101516 | B15: Ganado vacuno
A16: 10101517 | B16: Camellos
A17: 10101601 | B17: Pollos vivos
A18: 10101602 | B18: Patos vivos
A19: 10101603 | B19: Pavos vivos
A20: 10101604 | B20: Gansos vivos
A21: 10101605 | B21: Faisanes vivos
A22: 10101701 | B22: Salmón vivos
A23: 10101702 | B23: Trucha viva
A24: 10101703 | B24: Tilapia viva
A25: 10101704 | B25: Carpa viva
A26: 10101705 | B26: Anguilas vivas
A27: 10101801 | B27: Camarón vivo
A28: 10101802 | B28: Almejas vivas
A29: 10101803 | B29: Mejillones vivos
A30: 10101804 | B30: Ostras vivas
A31: 10101805 | B31: Cangrejos vivos
A32: 10101806 | B32: Abulones vivos
A33: 10101807 | B33: Pulpo vivo
A34: 10101808 | B34: Calamar vivo
A35: 10101901 | B35: Mariposas
A36: 10101902 | B36: Escarabajos
A37: 10101903 | B37: Abejas
A38: 10101904 | B38: Gusanos de seda
A39: 10102001 | B39: Elefantes
A40: 10102002 | B40: Zorros vivos
A41: 10111301 | B41: Juguetes para mascotas
A42: 10111302 | B42: Productos para el aseo y cuidado de mascotas
A43: 10111303 | B43: Equipo para el manejo de desperdicios de las mascotas
A44: 10111304 | B44: Tazones o equipo para alimentación de mascotas
A45: 10111305 | B45: Tratamientos medicados para mascotas
A46: 10111306 | B46: Kits para el entrenamiento de mascotas domésticas
A47: 10111307 | B47: Cobijas para mascotas
A48: 10121501 | B48: Salvado de trigo puro
A49: 10121502 | B49: Avena para forraje
A50: 10121503 | B50: Maíz para forraje
A51: 10121504 | B51: Sorgo para forraje
A52: 10121505 | B52: Heno
A53: 10121506 | B53: Tortas oleaginosas
A54: 10121601 | B54: Alimento vivo para aves
A55: 10121602 | B55: Alpiste
A56: 10121603 | B56: Pasa bocas o comida recreacional para aves
A57: 10121604 | B57: Alimento avícola
A58: 10121701 | B58: Salmuera fresca o congelada
A59: 10121702 | B59: Alimento granulado para peces
A60: 10121703 | B60: Alimento en hojuelas para peces
A61: 10121801 | B61: Comida seca para perros
A62: 10121802 | B62: Comida húmeda para perros
A63: 10121803 | B63: Leche para perros o gatos
A64: 10121804 | B64: Comida seca para gatos
A65: 10121805 | B65: Comida húmeda para gatos
A66: 10121806 | B66: Pasa bocas o comida recreacional para gatos o perros
A67: 10121901 | B67: Comida granulada para roedores
A68: 10122001 | B68: Comida granulada para reptiles
A69: 10122002 | B69: Comida húmeda para reptiles
A70: 10122003 | B70: Comida viva para reptiles
A71: 10122101 | B71: Comida para cerdos
A72: 10122102 | B72: Comida para visones
A73: 10122103 | B73: Comida para monos
A74: 10131506 | B74: Establos para ganado
A75: 10131507 | B75: Casas para mascotas domesticadas
A76: 10131508 | B76: Camas para mascotas
A77: 10131601 | B77: Jaulas o sus accesorios
A78: 10131602 | B78: Perreras
A79: 10131603 | B79: Equipaje para el transporte de animales
A80: 10131604 | B80: Correas para perros
A81: 10131701 | B81: Terrarios
A82: 10131702 | B82: Acuarios
A83: 10141501 | B83: Sillas de montar
A84: 10141502 | B84: Fustas y látigos
A85: 10141503 | B85: Herraduras para caballo
A86: 10141504 | B86: Herraduras para mula
A87: 10141601 | B87: Bridas
A88: 10141602 | B88: Yugos
A89: 10141603 | B89: Bocados para caballos
A90: 10141604 | B90: Riendas
A91: 10141605 | B91: Estribos
A92: 10141606 | B92: Correas o traíllas
A93: 10141607 | B93: Arneses de cuello para animales
A94: 10141608 | B94: Arneses o sus accesorios
A95: 10141609 | B95: Sujetadores
A96: 10141610 | B96: Bozales
A97: 10141611 | B97: Soportes para correas
A98: 10151501 | B98: Semillas o plántulas de fríjol
A99: 10151502 | B99: Semillas o plántulas de zanahoria
A100: 10151503 | B100: Semillas o plántulas de apio
A101: 10151504 | B101: Semillas o plántulas de chiles
A102: 10151505 | B102: Semillas o plántulas de calabacín
A103: 10151506 | B103: Semillas o plántulas de alverja
A104: 10151507 | B104: Semillas o plántulas de pepino cohombro
A105: 10151508 | B105: Semillas o plántulas de berenjena
A106: 10151509 | B106: Semillas o plántulas de endivias
A107: 10151510 | B107: Semillas o plántulas de ajo
A108: 10151511 | B108: Semillas o plántulas de puerro
A109: 10151512 | B109: Semillas o plántulas de lechuga
A110: 10151513 | B110: Semillas o plántulas de maíz
A111: 10151514 | B111: Semillas o plántulas de melón
A112: 10151515 | B112: Semillas o plántulas cebolla
A113: 10151516 | B113: Semillas o plántulas de soya
A114: 10151517 | B114: Semillas o plántulas de espinaca
A115: 10151518 | B115: Semillas o plántulas de tomate
A116: 10151519 | B116: Semillas o plántulas de nabo
A117: 10151520 | B117: Semillas o plántulas de acelga
A118: 10151521 | B118: Semillas o plántulas de pimiento morrón
A119: 10151522 | B119: Semillas o plántulas de remolacha
A120: 10151523 | B120: Semillas o plántulas de coliflor
A121: 10151524 | B121: Semillas o plántulas de perejil
A122: 10151525 | B122: Semillas o plántulas de brócoli
A123: 10151526 | B123: Semillas o plántulas de repollo
A124: 10151527 | B124: Semillas o plántulas de papa
A125: 10151528 | B125: Semillas o plántulas de batata
A126: 10151529 | B126: Semillas o plántulas de calabaza
A127: 10151530 | B127: Semillas o plántulas de rábano
A128: 10151531 | B128: Semillas o plántulas de repollitos de bruselas
A129: 10151532 | B129: Semillas o plántulas de ahuyama
A130: 10151533 | B130: Semillas o plántulas de okra
A131: 10151534 | B131: Semillas o plántulas de melón cantalupo
A132: 10151535 | B132: Semillas o plántulas de maní
A133: 10151601 | B133: Semillas de trigo
A134: 10151602 | B134: Semillas de canola
A135: 10151603 | B135: Semillas de cebada
A136: 10151604 | B136: Semillas de mijo
A137: 10151605 | B137: Semillas de avena
A138: 10151606 | B138: Semillas de ajonjolí
A139: 10151607 | B139: Semillas de linaza
A140: 10151608 | B140: Semillas de aceite de ricino
A141: 10151609 | B141: Semillas de maíz
A142: 10151610 | B142: Semillas de centeno
A143: 10151611 | B143: Semillas de sorgo
A144: 10151701 | B144: Semillas o plántulas de arroz
A145: 10151702 | B145: Semillas o plántulas de trébol
A146: 10151703 | B146: Semillas o plántulas de alfalfa
A147: 10151704 | B147: Semillas o plántulas de pasto
A148: 10151705 | B148: Semillas o plántulas de veza (gachas / guija)
A149: 10151706 | B149: Semillas o plántulas de guar
A150: 10151801 | B150: Semillas o plántulas de pimienta
A151: 10151802 | B151: Semillas o plántulas de vainilla
A152: 10151803 | B152: Semillas o plántulas de canela
A153: 10151804 | B153: Semillas o plántulas de clavo de olor
A154: 10151805 | B154: Semillas o plántulas de cilantro
A155: 10151806 | B155: Semillas o plántulas de jengibre
A156: 10151807 | B156: Semillas o plántulas de azafrán
A157: 10151808 | B157: Semillas o plántulas de tomillo
A158: 10151809 | B158: Semillas o plántulas de curry
A159: 10151810 | B159: Semillas o plántulas de mostaza
A160: 10151811 | B160: Semillas o plántulas de ginseng
A161: 10151901 | B161: Semillas, bulbos, plántulas o esquejes de tulipán
A162: 10151902 | B162: Semillas, plántulas o esquejes de rosa
A163: 10151903 | B163: Semillas, bulbos, plántulas o esquejes de narciso
A164: 10151904 | B164: Semillas de girasol
A165: 10151905 | B165: Bulbos o tallos de jacinto
A166: 10151906 | B166: Bulbos de lirio
A167: 10151907 | B167: Semillas o plántulas de veza
A168: 10152001 | B168: Semillas o esquejes de árboles frutales
A169: 10152002 | B169: Semillas o esquejes de coníferas
A170: 10152003 | B170: Semillas o esquejes de árboles de frutos secos
A171: 10152101 | B171: Extracción de los residuos de semilla de babool
A172: 10152102 | B172: Residuos de semilla de colza
A173: 10152103 | B173: Residuo de semillas de linaza
A174: 10152104 | B174: Torta de neem
A175: 10152201 | B175: Semillas o plántulas de algodón
A176: 10152202 | B176: Semillas o plántulas de lino
A177: 10161501 | B177: Aceitunos
A178: 10161502 | B178: Cafetos
A179: 10161503 | B179: Cacaoteros
A180: 10161504 | B180: Manzanos
A181: 10161505 | B181: Peros
A182: 10161506 | B182: Naranjos
A183: 10161507 | B183: Rododendros
A184: 10161508 | B184: Plantas de te
A185: 10161509 | B185: Coníferas
A186: 10161510 | B186: Abetos rojos (píceas)
A187: 10161511 | B187: Pinos
A188: 10161512 | B188: Abetos
A189: 10161513 | B189: Palmeras
A190: 10161601 | B190: Rosales
A191: 10161602 | B191: Poinsettias
A192: 10161603 | B192: Orquídeas
A193: 10161604 | B193: Azaleas
A194: 10161605 | B194: Cactos
A195: 10161701 | B195: Gladiolos cortados
A196: 10161702 | B196: Azucenas cortadas
A197: 10161703 | B197: Claveles cortados
A198: 10161704 | B198: Tulipanes cortados
A199: 10161705 | B199: Rosas cortadas
A200: 10161707 | B200: Arreglo de flores cortadas
... 18098 more rows

Sheet ProcedureTemplate (hidden)
A1: NOMBRE O REFERENCIA DE CONTRATACIÓN | B1: FINALIDAD DE LA CONTRATACIÓN | C1: OBJETO DE CONTRATACIÓN | D1: PROCEDIMIENTO DE SELECCIÓN | E1: DESTINADO A MIPYMES | F1: CÓDIGO SNIP
A3: FECHA DE NECESSIDAD | B3: FECHA INICIO PROCESO DE COMPRA | D3: LUGAR DE EJECUCIÓN / ENTREGA | E3: Región
B4: TRIMESTRE | C4: =IF(C3="","",IF(AND(MONTH(C3)>=1,MONTH(C3)<=3),1,IF(AND(MONTH(C3)>=4,MONTH(C3)<=6),2,IF(AND(MONTH(C3)>=7,MONTH(C3)<=9),3,4)))) ->  | E4: Provincia
B5: FECHA PREVISTA ADJUDICACIÓN | E5: Municipio
B6: TRIMESTRE | C6: =IF(C5="","",IF(AND(MONTH(C5)>=1,MONTH(C5)<=3),1,IF(AND(MONTH(C5)>=4,MONTH(C5)<=6),2,IF(AND(MONTH(C5)>=7,MONTH(C5)<=9),3,4)))) ->  | E6: Distrito Municipal
A8: CÓDIGO CATÁLOGO | B8: ARTÍCULO | C8: UNIDAD DE MEDIDA | D8: CANTIDAD TOTAL ESTIMADA | E8: PRECIO UNITARIO ESTIMADO | F8: MONTO TOTAL ESTIMADO
B9: =IFERROR(INDEX(UNSPSCDes,MATCH(INDIRECT(ADDRESS(ROW(),COLUMN()-1,4)),UNSPSCCode,0)),"") ->  | F9: =INDIRECT(ADDRESS(ROW(),COLUMN()-2,4))*INDIRECT(ADDRESS(ROW(),COLUMN()-1,4)) -> 0
E10: TOTAL COMPRA ESTIMADA | F10: =SUM(Table3[MONTO TOTAL ESTIMADO]) -> 0 | H10: =C2 -> 0 | I10: =E2 -> 0 | J10: =D2 -> 0
